bitfinex-derivatives/quotes_SOLF0:USTF0_20250606
["timestamp","ask_amount","ask_price","bid_price","bid_amount"]
[1749207970869,3.08642885,148.6,148.57,0.05072383]
[1749207970870,6.7271,148.58,148.57,0.05072383]
[1749207971072,22.95547962,148.58,148.57,0.05072383]
[1749207971270,22.9554803,148.58,148.57,0.05072383]
[1749207971470,19.91335363,148.58,148.57,0.05072383]
[1749207971775,12.3670069,148.58,148.57,0.05072383]
[1749207972077,19.92575332,148.58,148.57,0.05072383]
[1749207972274,19.9255771,148.58,148.57,0.05072383]
[1749207972774,19.92552741,148.58,148.57,0.05072383]
[1749207972975,17.15172386,148.58,148.57,0.05072383]
[1749207973377,17.16318944,148.58,148.57,0.05072383]
[1749207973676,19.94262965,148.58,148.57,0.05072383]
[1749207973878,19.941622,148.58,148.57,0.05072383]
[1749207974176,15.14642263,148.58,148.57,0.05072383]
[1749207974378,19.94038319,148.58,148.57,0.05072383]
[1749207974577,19.94031534,148.58,148.57,0.05072383]
[1749207974877,19.9406124,148.58,148.57,0.05072383]
[1749207975176,17.16113486,148.58,148.57,0.05072383]
[1749207975375,19.94061081,148.58,148.57,0.05072383]
[1749207975775,19.94100909,148.58,148.57,0.05072383]
[1749207976675,17.16113486,148.58,148.57,0.05072383]
[1749207976873,12.3670069,148.58,148.57,0.05072383]
[1749207977072,15.14721799,148.58,148.57,0.05072383]
[1749207977372,19.93992918,148.58,148.57,0.05072383]
[1749207977777,19.93986876,148.58,148.57,0.05072383]
[1749207977968,19.93979564,148.58,148.57,0.05072383]
[1749207978171,19.94054047,148.58,148.57,0.05072383]
[1749207978377,19.94049173,148.58,148.57,0.05072383]
[1749207978976,13.21339173,148.58,148.57,0.05072383]
[1749207979570,13.21334875,148.58,148.57,0.05072383]
[1749207979775,13.21634245,148.58,148.57,0.05072383]
[1749207979975,10.43317834,148.58,148.57,4.80462752]
[1749207980278,8.42360387,148.58,148.57,4.80462752]
[1749207980474,13.2169901,148.58,148.57,11.53212752]
[1749207980680,5.6399069,148.58,148.57,11.53212752]
[1749207980980,13.21796726,148.58,148.57,11.53212752]
[1749207981179,0.04387379,148.6,148.57,11.53212752]
[1749207981480,5.63556461,148.59,148.57,11.53212752]
[1749207981676,0.04387379,148.6,148.57,11.53212752]
[1749207981872,6.77007379,148.6,148.57,11.53212752]
[1749207982181,0.04387379,148.6,148.57,4.80462752]
[1749207982376,6.7266,148.59,148.57,38.24462752]
[1749207983268,6.7271,148.58,148.57,33.49072383]
[1749207983478,11.48100369,148.58,148.57,0.05072383]
[1749207983678,6.7293,148.54,148.51,40.09]
[1749207983874,4.75390369,148.58,148.51,40.09]
[1749207984586,0.05119352,148.56,148.53,0.05080456]
[1749207985276,6.7287,148.55,148.53,0.05080456]
[1749207987084,6.77939352,148.56,148.53,6.77990456]
[1749207987380,6.77939352,148.56,148.53,0.05080456]
[1749207987781,6.7285,148.55,148.53,0.05080456]
[1749207987980,0.05119352,148.56,148.53,0.05080456]
[1749207988380,6.7287,148.55,148.53,0.05080456]
[1749207989283,6.77939352,148.56,148.53,6.78010456]
[1749207990682,6.7285,148.55,148.53,6.78010456]
[1749207991085,0.05119352,148.56,148.53,6.78010456]
[1749207991288,6.77959352,148.56,148.53,6.78010456]
[1749207994389,6.7285,148.55,148.53,6.78010456]
[1749207994987,0.05119352,148.56,148.53,6.78010456]
[1749207995490,6.77939352,148.56,148.53,6.78010456]
[1749207995882,0.05119352,148.56,148.53,6.78010456]
[1749207996084,6.7286,148.55,148.53,6.78010456]
[1749207997685,6.7289,148.54,148.53,0.05080456]
[1749207997994,0.05119352,148.56,148.53,0.05080456]
[1749207998183,12.94303976,148.55,148.53,0.05080456]
[1749207998384,0.05119352,148.56,148.53,0.05080456]
[1749207998589,2.70627111,148.55,148.53,0.05080456]
[1749207998984,2.70627111,148.55,148.54,6.7288]
[1749207999190,6.77949352,148.56,148.53,0.05080456]
[1749207999584,6.77949352,148.56,148.53,6.77990456]
[1749207999788,0.05119352,148.56,148.53,4.80470825]
[1749208000189,0.05119352,148.56,148.54,6.7286]
[1749208000888,6.77929352,148.56,148.54,6.7286]
[1749208001586,6.7286,148.55,148.53,11.53390825]
[1749208002095,6.7286,148.55,148.53,0.05080456]
[1749208002391,6.7286,148.55,148.53,6.78010456]
[1749208005300,6.77939352,148.56,148.53,0.05080456]
[1749208006398,5.60041345,148.55,148.53,0.05080456]
[1749208006697,6.77939352,148.56,148.54,6.7288]
[1749208006894,8.29752135,148.55,148.54,6.7288]
[1749208007594,5.6003725,148.55,148.54,6.7288]
[1749208007800,8.29706307,148.55,148.54,6.7288]
[1749208008001,8.29692828,148.55,148.54,6.7288]
[1749208008300,2.69655578,148.55,148.54,6.7288]
[1749208008501,8.29443515,148.55,148.54,6.7288]
[1749208009000,8.29443515,148.55,148.53,6.77990456]
[1749208009295,6.77949352,148.56,148.53,6.77990456]
[1749208009491,8.29148051,148.55,148.53,6.77990456]
[1749208009698,6.7286,148.55,148.53,6.77990456]
[1749208009996,0.05119352,148.56,148.53,6.77990456]
[1749208010196,8.28863694,148.55,148.53,6.77990456]
[1749208010396,6.77929352,148.56,148.54,6.7289]
[1749208010596,8.28825529,148.55,148.54,6.7289]
[1749208011000,8.2878298,148.55,148.54,6.7289]
[1749208011201,8.28783352,148.55,148.54,6.7289]
[1749208011397,0.05119352,148.56,148.54,6.7289]
[1749208013905,6.77919352,148.56,148.54,6.7289]
[1749208014103,0.05119352,148.56,148.54,6.7289]
[1749208016110,0.05119352,148.56,148.53,0.05080456]
[1749208016408,2.69480703,148.55,148.53,0.05080456]
[1749208016609,6.7287,148.55,148.53,0.05080456]
[1749208017208,6.77959352,148.56,148.53,6.77990456]
[1749208017813,2.69499861,148.55,148.53,6.77990456]
[1749208018006,6.77959352,148.56,148.54,6.7289]
[1749208019114,2.69475567,148.55,148.53,6.77990456]
[1749208019312,6.7285,148.55,148.53,6.77990456]
[1749208019708,6.77939352,148.56,148.53,6.77990456]
[1749208020113,6.77939352,148.56,148.54,6.7289]
[1749208020815,2.69453883,148.55,148.54,6.7289]
[1749208021112,6.77939352,148.56,148.54,6.7289]
[1749208021815,6.7285,148.55,148.53,6.77990456]
[1749208022115,6.7285,148.55,148.53,0.05080456]
[1749208023619,6.7285,148.55,148.53,6.78000456]
[1749208024522,6.77939352,148.56,148.53,6.78000456]
[1749208024818,10.20808133,148.55,148.53,6.78000456]
[1749208025018,6.77939352,148.56,148.53,6.78000456]
[1749208025219,12.32678386,148.55,148.53,6.78000456]
[1749208025420,11.33737582,148.55,148.53,6.78000456]
[1749208025622,4.60887582,148.54,148.53,6.78000456]
[1749208025823,6.7285,148.55,148.53,6.78000456]
[1749208026118,9.82325991,148.56,148.53,6.78000456]
[1749208026323,10.20280444,148.55,148.54,6.7289]
[1749208026624,10.20280444,148.55,148.53,0.05080456]
[1749208026823,10.20280444,148.54,148.53,0.05080456]
[1749208027025,10.2026167,148.54,148.53,0.05080456]
[1749208027220,10.2026167,148.54,148.53,6.77990456]
[1749208027521,5.59950842,148.54,148.53,6.77990456]
[1749208027823,10.2025993,148.54,148.53,6.77990456]
[1749208028323,9.82325991,148.56,148.54,6.7288]
[1749208028526,5.60341429,148.55,148.54,6.7288]
[1749208028918,9.82325991,148.56,148.54,6.7288]
[1749208029124,5.60283216,148.55,148.54,6.7288]
[1749208029325,0.05119352,148.56,148.55,6.7285]
[1749208029627,10.25674928,148.56,148.55,6.7285]
[1749208029825,10.25697057,148.56,148.55,6.7285]
[1749208030024,5.6542189,148.56,148.55,9.77236639]
[1749208030926,5.6542189,148.56,148.55,6.7285]
[1749208031824,0.05119352,148.56,148.55,6.7285]
[1749208032127,0.05119352,148.56,148.55,9.77236639]
[1749208032327,5.65449249,148.56,148.55,9.77236639]
[1749208032924,5.65449249,148.56,148.55,6.7285]
[1749208034228,8.69835888,148.56,148.53,6.78000456]
[1749208034421,10.20568408,148.55,148.53,6.78000456]
[1749208034619,0.05119352,148.56,148.53,3.09467095]
[1749208034926,0.05119352,148.56,148.55,6.7285]
[1749208035122,10.27016805,148.56,148.53,3.09467095]
[1749208035327,0.05119352,148.56,148.54,6.7289]
[1749208035634,0.05119352,148.56,148.53,3.09467095]
[1749208035930,2.70148681,148.55,148.53,3.09467095]
[1749208036130,0.05119352,148.56,148.53,3.09467095]
[1749208036331,2.70148681,148.55,148.53,3.09467095]
[1749208036632,0.05119352,148.56,148.55,6.7285]
[1749208036925,12.97178212,148.56,148.55,6.7285]
[1749208037129,12.97178223,148.56,148.55,6.7285]
[1749208037426,10.27052432,148.56,148.55,6.7285]
[1749208037625,12.97194763,148.56,148.55,6.7285]
[1749208037926,12.97153963,148.56,148.55,6.7285]
[1749208038124,8.36200868,148.56,148.55,6.7285]
[1749208038328,10.27074713,148.56,148.55,6.7285]
[1749208038528,10.27070968,148.56,148.55,6.7285]
[1749208039132,5.66095958,148.56,148.55,9.77236639]
[1749208039523,0.05119352,148.56,148.55,9.77236639]
[1749208039819,0.05119352,148.56,148.55,3.04386639]
[1749208043232,0.05119352,148.56,148.55,9.77236639]
[1749208043532,0.05119352,148.56,148.55,3.04386639]
[1749208043926,6.77919352,148.56,148.53,0.05080456]
[1749208044126,3.04386639,148.54,148.53,0.05080456]
[1749208044323,5.74301246,148.54,148.53,0.05080456]
[1749208044528,3.04386639,148.54,148.53,0.05080456]
[1749208045024,2.69881412,148.54,148.53,0.05080456]
[1749208045425,2.69881412,148.54,148.53,6.78020456]
[1749208045739,9.77266639,148.55,148.53,6.78020456]
[1749208046336,2.70766501,148.54,148.53,6.78020456]
[1749208046736,9.77266639,148.55,148.53,6.78020456]
[1749208046938,2.7097099,148.54,148.53,6.78020456]
[1749208047132,6.7288,148.55,148.53,6.78020456]
[1749208047327,2.70964556,148.54,148.53,6.78020456]
[1749208047533,2.70969612,148.54,148.53,6.78020456]
[1749208047732,2.70992023,148.54,148.53,0.05080456]
[1749208047935,9.43897433,148.54,148.53,0.05080456]
[1749208048135,0.05119352,148.56,148.53,0.05080456]
[1749208048335,12.95277538,148.55,148.53,0.05080456]
[1749208048536,8.32866327,148.54,148.53,0.05080456]
[1749208049130,8.32858352,148.54,148.53,0.05080456]
[1749208049331,8.32837428,148.54,148.53,0.05080456]
[1749208049632,8.32837428,148.54,148.53,6.78020456]
[1749208049832,8.32852559,148.54,148.53,6.78020456]
[1749208050034,8.32838141,148.54,148.53,6.78020456]
[1749208050539,5.61874256,148.54,148.53,6.78020456]
[1749208050737,10.24862069,148.54,148.53,6.78020456]
[1749208051235,10.24940523,148.54,148.53,6.78020456]
[1749208051435,10.24940515,148.54,148.53,6.78020456]
[1749208051636,5.61874256,148.54,148.53,6.78020456]
[1749208051838,10.23808299,148.54,148.53,6.78020456]
[1749208052138,5.61874256,148.54,148.53,6.78020456]
[1749208052339,0.05119352,148.56,148.54,6.7286]
[1749208052640,5.61887473,148.55,148.54,6.7286]
[1749208052836,10.23919767,148.55,148.54,6.7286]
[1749208053034,10.23942196,148.55,148.53,6.78000456]
[1749208053237,10.23912387,148.54,148.53,0.05080456]
[1749208053434,21.72381486,148.54,148.53,0.05080456]
[1749208054540,21.72068605,148.54,148.53,0.05080456]
[1749208054739,21.72067253,148.54,148.53,0.05080456]
[1749208055238,21.72132683,148.54,148.53,0.05080456]
[1749208055539,21.72250116,148.54,148.53,0.05080456]
[1749208055940,21.71925387,148.54,148.53,0.05080456]
[1749208056235,21.71929495,148.54,148.53,0.05080456]
[1749208056446,10.23464719,148.54,148.53,6.78020456]
[1749208056639,10.22417736,148.54,148.53,6.78020456]
[1749208056838,10.22423404,148.54,148.53,6.78020456]
[1749208057533,10.21936226,148.54,148.53,6.78020456]
[1749208057734,10.21936962,148.54,148.53,6.78020456]
[1749208058237,5.61887473,148.54,148.53,6.78020456]
[1749208059240,0.05119352,148.56,148.55,6.7285]
[1749208059442,10.2618222,148.56,148.55,6.7285]
[1749208059641,10.26199589,148.56,148.55,6.7285]
[1749208059838,10.26195925,148.56,148.55,6.7285]
[1749208060037,5.66043587,148.56,148.55,6.7285]
[1749208060237,10.26198755,148.56,148.55,6.7285]
[1749208060438,10.26196358,148.56,148.55,6.7285]
[1749208061143,16.99006358,148.56,148.54,6.7287]
[1749208061341,10.21077006,148.55,148.54,6.7287]
[1749208061543,10.21102574,148.55,148.54,6.7287]
[1749208061847,5.60924235,148.55,148.54,6.7287]
[1749208062346,10.2104958,148.55,148.54,6.7287]
[1749208063045,10.2090872,148.55,148.54,6.7287]
[1749208063239,10.20931354,148.55,148.54,6.7287]
[1749208063439,10.20913041,148.55,148.54,6.7287]
[1749208063641,5.60924235,148.55,148.54,6.7287]
[1749208064039,10.20931782,148.55,148.54,6.7287]
[1749208064343,10.20935193,148.55,148.54,6.7287]
[1749208064543,10.20701074,148.55,148.54,6.7287]
[1749208065244,10.20688925,148.55,148.54,6.7287]
[1749208065547,5.60690116,148.55,148.54,6.7287]
[1749208065739,10.20688839,148.55,148.54,6.7287]
[1749208066850,5.60690116,148.55,148.54,6.7287]
[1749208067146,10.21328342,148.55,148.54,6.7287]
[1749208067351,5.60690116,148.55,148.54,6.7287]
[1749208067543,10.2135728,148.55,148.54,6.7287]
[1749208068048,5.60690116,148.55,148.54,6.7287]
[1749208068251,10.33112206,148.55,148.54,6.7287]
[1749208068451,10.33641746,148.55,148.54,6.7287]
[1749208068751,10.33641754,148.55,148.54,6.7287]
[1749208069145,5.60690116,148.55,148.54,6.7287]
[1749208069346,10.33574246,148.55,148.54,6.7287]
[1749208069546,10.3357424,148.55,148.54,6.7287]
[1749208070152,20.10821561,148.55,148.53,0.05080456]
[1749208070353,8.65068322,148.54,148.53,0.05080456]
[1749208070853,13.37879994,148.54,148.53,0.05080456]
[1749208071054,13.37922858,148.54,148.53,0.05080456]
[1749208071258,13.37915006,148.54,148.53,0.05080456]
[1749208071741,20.10815006,148.54,148.53,0.05080456]
[1749208072352,20.10368983,148.54,148.53,0.05080456]
[1749208072548,15.37968322,148.54,148.53,0.05080456]
[1749208072743,20.10383597,148.54,148.53,0.05080456]
[1749208073958,20.10156928,148.54,148.53,0.05080456]
[1749208074355,15.37968322,148.54,148.53,0.05080456]
[1749208074756,20.1015528,148.54,148.53,0.05080456]
[1749208075659,20.10201212,148.54,148.53,0.05080456]
[1749208075957,15.37968322,148.54,148.53,0.05080456]
[1749208076160,13.3567185,148.54,148.53,6.78020456]
[1749208076458,13.35762441,148.54,148.53,6.78020456]
[1749208076856,10.31384235,148.54,148.53,6.78020456]
[1749208077259,5.60690116,148.54,148.53,6.78020456]
[1749208077459,13.34093788,148.54,148.53,6.78020456]
[1749208077660,13.34072729,148.54,148.53,6.78020456]
[1749208077960,8.65068322,148.54,148.53,6.78020456]
[1749208078161,13.34088436,148.54,148.53,6.78020456]
[1749208078356,13.34088436,148.54,148.53,0.05080456]
[1749208079257,13.34040998,148.54,148.53,0.05080456]
[1749208079464,20.0694358,148.54,148.53,0.05080456]
[1749208080062,20.06879458,148.54,148.53,0.05080456]
[1749208080362,20.06869132,148.54,148.53,0.05080456]
[1749208081058,20.06807206,148.54,148.53,0.05080456]
[1749208082062,20.06845729,148.54,148.53,0.05080456]
[1749208082265,13.33945729,148.54,148.53,0.05080456]
[1749208082766,13.33556616,148.54,148.53,0.05080456]
[1749208083665,20.06456616,148.54,148.53,0.05080456]
[1749208084269,15.37968322,148.54,148.53,0.05080456]
[1749208084662,20.06413262,148.54,148.53,0.05080456]
[1749208085065,15.37968322,148.54,148.53,0.05080456]
[1749208085265,10.29445003,148.54,148.53,6.78020456]
[1749208085863,13.33823209,148.54,148.53,0.05080456]
[1749208086064,13.33716907,148.54,148.53,0.05080456]
[1749208086365,20.07160049,148.54,148.53,0.05080456]
[1749208086567,15.37968322,148.54,148.53,0.05080456]
[1749208086768,20.07222566,148.54,148.53,0.05080456]
[1749208086966,20.07214074,148.54,148.53,0.05080456]
[1749208087165,20.07184653,148.54,148.53,0.05080456]
[1749208087369,20.07189238,148.54,148.53,0.05080456]
[1749208087569,15.37968322,148.54,148.53,0.05080456]
[1749208087869,20.07189238,148.54,148.53,0.05080456]
[1749208088065,15.37968322,148.54,148.53,0.05080456]
[1749208088268,20.06964235,148.54,148.53,0.05080456]
[1749208088568,20.06977464,148.54,148.53,0.05080456]
[1749208088769,13.34077464,148.54,148.53,0.05080456]
[1749208088969,13.34085339,148.54,148.53,0.05080456]
[1749208089170,13.34116737,148.54,148.53,0.05080456]
[1749208089569,8.65068322,148.54,148.53,0.05080456]
[1749208089877,13.34130528,148.54,148.53,0.05080456]
[1749208090176,8.65068322,148.54,148.53,6.78020456]
[1749208090366,13.34189501,148.54,148.53,6.78020456]
[1749208090873,13.34183738,148.54,148.53,6.78020456]
[1749208091075,8.65068322,148.54,148.53,6.78020456]
[1749208091569,10.2980404,148.54,148.53,0.05080456]
[1749208091868,10.29792557,148.54,148.53,0.05080456]
[1749208092765,5.60690116,148.54,148.53,6.78020456]
[1749208092969,10.30355349,148.54,148.53,6.78020456]
[1749208093471,5.60690116,148.54,148.53,6.78020456]
[1749208093671,10.30453656,148.54,148.53,6.78020456]
[1749208094176,10.30468626,148.54,148.53,6.78020456]
[1749208094382,10.30468619,148.54,148.53,6.78020456]
[1749208094574,5.60690116,148.54,148.53,6.78020456]
[1749208094773,10.30477016,148.54,148.53,6.78020456]
[1749208094975,10.30491864,148.54,148.53,6.78020456]
[1749208095376,5.60690116,148.54,148.53,6.78020456]
[1749208095572,10.30479818,148.54,148.53,6.78020456]
[1749208095978,10.30479154,148.54,148.53,6.78020456]
[1749208096178,5.60690116,148.54,148.53,6.78020456]
[1749208096382,10.31022881,148.54,148.53,6.78020456]
[1749208096583,10.31021648,148.54,148.53,6.78020456]
[1749208096883,5.60690116,148.54,148.53,6.78020456]
[1749208097184,10.31022737,148.54,148.53,6.78020456]
[1749208097575,4.70332621,148.54,148.53,6.78020456]
[1749208097778,3.04378206,148.55,148.53,6.78020456]
[1749208097984,0.05119352,148.56,148.55,6.7285]
[1749208098183,5.64552444,148.56,148.55,6.7285]
[1749208098578,10.35210965,148.56,148.55,6.7285]
[1749208099279,10.35198386,148.56,148.55,6.7285]
[1749208100079,5.64552444,148.56,148.55,6.7285]
[1749208100482,10.35198103,148.56,148.55,6.7285]
[1749208100787,0.05119352,148.56,148.55,6.7285]
[1749208101891,0.05119352,148.56,148.54,9.77258206]
[1749208102482,0.05119352,148.56,148.54,3.04378206]
[1749208104192,6.77929352,148.56,148.54,3.04378206]
[1749208104688,0.05119352,148.56,148.55,3.04378206]
[1749208105284,0.05119352,148.56,148.55,9.77228206]
[1749208105480,3.04378206,148.61,148.55,3.04378206]
[1749208105682,10.31452575,148.6,148.57,3.04378206]
[1749208105885,3.04378206,148.61,148.57,3.04378206]
[1749208106092,10.31458735,148.6,148.57,3.04378206]
[1749208106392,6.77717452,148.6,148.57,3.09497153]
[1749208106586,0.05057452,148.6,148.57,3.09497153]
[1749208106788,0.05057452,148.6,148.58,3.04378206]
[1749208107094,0.05057452,148.6,148.59,3.04378206]
[1749208109287,0.05057452,148.6,148.59,4.75034355]
[1749208112792,0.05057452,148.6,148.59,11.47704355]
[1749208113792,35.522,148.69,148.59,4.75034355]
[1749208113996,13.04086375,148.68,148.64,4.75034355]
[1749208114189,7.45546186,148.67,148.63,4.75034355]
[1749208114497,2.69450143,148.67,148.63,4.75034355]
[1749208114699,0.04829615,148.66,148.64,0.04796974]
[1749208115200,13.03583088,148.65,148.58,33.34]
[1749208115386,6.7266,148.6,148.58,38.09034355]
[1749208116198,6.77152016,148.6,148.58,38.13944733]
[1749208116594,6.7267,148.59,148.58,38.13944733]
[1749208116902,6.7267,148.59,148.58,33.38910378]
[1749208120999,6.7267,148.59,148.58,0.04910378]
[1749208127003,0.04492016,148.6,148.58,6.77620378]
[1749208129093,0.04492016,148.6,148.59,6.7267]
[1749208133304,8.48007898,148.67,148.59,4.75034355]
[1749208133305,40.28294355,148.67,148.59,4.75034355]
[1749208133606,10.46739195,148.66,148.6,4.75034355]
[1749208133904,6.7247,148.64,148.62,6.725]
[1749208134097,5.59096685,148.66,148.62,4.75034355]
[1749208134296,11.65513739,148.65,148.63,0.05163805]
[1749208134503,0.05157673,148.65,148.63,0.05163805]
[1749208135802,6.7244,148.64,148.63,0.05163805]
[1749208138006,6.77567673,148.65,148.63,0.05163805]
[1749208139509,6.77567673,148.65,148.63,6.77643805]
[1749208140512,6.7244,148.64,148.63,0.05163805]
[1749208142201,6.77577673,148.65,148.63,6.77633805]
[1749208143008,6.77577673,148.65,148.63,0.05163805]
[1749208143609,6.77577673,148.65,148.63,6.77623805]
[1749208146513,6.7244,148.64,148.63,0.05163805]
[1749208146926,11.62071944,148.64,148.63,0.05163805]
[1749208147420,19.78145227,148.64,148.63,0.05163805]
[1749208147621,24.67779762,148.64,148.63,0.05163805]
[1749208147816,13.05730438,148.64,148.56,33.82]
[1749208148016,13.2055343,148.63,148.56,33.82]
[1749208148214,13.20627392,148.62,148.56,38.57034355]
[1749208148420,6.7265,148.6,148.56,38.57034355]
[1749208148917,0.04913412,148.59,148.57,0.05123178]
[1749208149816,0.04913412,148.59,148.58,6.7271]
[1749208150723,4.9505643,148.59,148.58,6.7271]
[1749208150919,0.04913412,148.59,148.58,6.7271]
[1749208151424,4.95056826,148.59,148.58,6.7271]
[1749208152226,0.04913412,148.59,148.58,6.7271]
[1749208155131,0.04913412,148.59,148.58,11.47744355]
[1749208169243,0.04913412,148.59,148.58,9.76826645]
[1749208172043,0.04913412,148.59,148.58,6.7271]
[1749208172243,0.04913412,148.59,148.58,9.76826645]
[1749208179049,5.59730003,148.63,148.62,6.7253]
[1749208179253,13.18448347,148.63,148.61,3.04116645]
[1749208179453,4.88551812,148.62,148.61,3.04116645]
[1749208180050,7.5840139,148.62,148.61,3.04116645]
[1749208180251,4.88551812,148.62,148.61,9.76646645]
[1749208180550,4.88483208,148.62,148.61,3.04116645]
[1749208180750,7.58445573,148.62,148.61,3.04116645]
[1749208181056,7.58412853,148.62,148.61,9.76666645]
[1749208181855,7.57740091,148.62,148.61,9.76666645]
[1749208182060,4.87968543,148.62,148.61,9.76666645]
[1749208182359,7.57742454,148.62,148.61,9.76666645]
[1749208182550,7.57927654,148.62,148.61,9.76666645]
[1749208182750,7.5793172,148.62,148.61,6.7255]
[1749208182951,2.69849266,148.62,148.61,6.7255]
[1749208183247,7.57934456,148.62,148.61,6.7255]
[1749208183447,7.57950329,148.62,148.61,6.7255]
[1749208183654,7.57820351,148.62,148.61,6.7255]
[1749208183855,7.57820597,148.62,148.61,6.7255]
[1749208184056,2.69864942,148.62,148.61,6.7255]
[1749208184257,13.51827457,148.62,148.6,0.04373155]
[1749208184457,7.57710608,148.61,148.6,0.04373155]
[1749208184659,4.87830286,148.61,148.6,6.76993155]
[1749208184857,7.57746444,148.61,148.6,6.76993155]
[1749208185159,13.17506063,148.61,148.6,6.76993155]
[1749208185359,8.29675777,148.61,148.6,6.76993155]
[1749208185658,13.17662508,148.61,148.6,6.76993155]
[1749208185958,13.17676492,148.61,148.6,0.04373155]
[1749208186360,10.47763786,148.61,148.6,0.04373155]
[1749208186561,13.17685251,148.61,148.6,6.76993155]
[1749208186759,10.47769472,148.61,148.6,6.76993155]
[1749208187057,8.29753088,148.61,148.6,6.76993155]
[1749208187261,10.47904931,148.61,148.6,6.76993155]
[1749208187568,10.47904931,148.61,148.56,33.82]
[1749208187569,16.21987365,148.61,148.56,33.82]
[1749208187860,16.21987365,148.6,148.56,36.86116645]
[1749208188059,19.9057072,148.59,148.56,43.58896645]
[1749208188264,4.88145312,148.58,148.56,43.58896645]
[1749208188459,6.727,148.59,148.56,9.76896645]
[1749208188659,7.57870624,148.58,148.56,9.819831]
[1749208188962,6.77644142,148.59,148.57,6.7275]
[1749208189258,0.04944142,148.59,148.56,0.05086455]
[1749208189457,0.04944142,148.59,148.58,6.7271]
[1749208189661,13.22686771,148.59,148.58,6.7271]
[1749208189957,10.53011531,148.59,148.58,6.7271]
[1749208190158,4.93174741,148.59,148.58,6.7271]
[1749208190765,4.93255677,148.59,148.58,6.7271]
[1749208190960,4.93267128,148.59,148.58,6.7271]
[1749208191464,0.04944142,148.59,148.58,6.7271]
[1749208194262,0.04944142,148.59,148.58,11.48079781]
[1749208198066,0.04944142,148.59,148.58,6.7271]
[1749208199169,4.93046779,148.59,148.58,6.7271]
[1749208199367,4.93046794,148.59,148.58,6.7271]
[1749208199565,0.04944142,148.59,148.58,6.7271]
[1749208199766,4.93042864,148.59,148.58,6.7271]
[1749208200574,13.22931794,148.59,148.56,33.67086455]
[1749208200764,4.87452321,148.58,148.56,33.67086455]
[1749208201069,0.04944142,148.59,148.56,0.05086455]
[1749208201274,4.87437251,148.58,148.56,0.05086455]
[1749208201570,6.77634142,148.59,148.56,0.05086455]
[1749208201771,13.17738107,148.58,148.56,6.77866455]
[1749208201961,6.77634142,148.59,148.56,6.77866455]
[1749208202164,13.17467918,148.58,148.56,6.77866455]
[1749208202472,6.77634142,148.59,148.57,6.7275]
[1749208202668,4.86991259,148.58,148.57,6.7275]
[1749208202971,4.86890665,148.58,148.57,6.7275]
[1749208203272,7.56759096,148.58,148.57,6.7275]
[1749208203773,7.56603596,148.58,148.57,6.7275]
[1749208203973,7.56555507,148.58,148.56,6.77866455]
[1749208204171,6.77644142,148.59,148.56,0.05086455]
[1749208204374,4.86639319,148.58,148.56,0.05086455]
[1749208204569,6.77644142,148.59,148.56,6.77856455]
[1749208204872,4.86626715,148.58,148.56,6.77856455]
[1749208205175,6.77644142,148.59,148.56,6.77856455]
[1749208205470,4.86560411,148.58,148.56,6.77856455]
[1749208205671,6.77644142,148.59,148.56,6.77856455]
[1749208205974,10.44138973,148.58,148.56,6.77856455]
[1749208206175,6.77644142,148.59,148.57,6.7276]
[1749208206466,10.43900564,148.58,148.56,0.05086455]
[1749208206669,10.43784753,148.57,148.56,0.05086455]
[1749208207372,17.16544753,148.57,148.56,0.05086455]
[1749208207777,17.15659451,148.57,148.56,0.05086455]
[1749208208976,10.42833802,148.57,148.56,6.77886455]
[1749208209177,0.04944142,148.59,148.56,6.77886455]
[1749208209370,10.42147573,148.58,148.56,6.77886455]
[1749208209565,6.7273,148.58,148.56,6.77886455]
[1749208210174,4.83857771,148.57,148.56,6.77886455]
[1749208210376,6.7273,148.58,148.56,0.05086455]
[1749208210877,4.83285421,148.57,148.56,0.05086455]
[1749208211177,11.56045421,148.57,148.56,0.05086455]
[1749208212082,11.55392457,148.57,148.56,0.05086455]
[1749208212278,11.55380324,148.57,148.56,0.05086455]
[1749208212580,11.5531231,148.57,148.56,0.05086455]
[1749208212780,11.55060955,148.57,148.56,0.05086455]
[1749208213380,6.7274,148.58,148.56,0.05086455]
[1749208213586,6.7274,148.58,148.56,6.77886455]
[1749208214275,4.82276056,148.57,148.56,6.77886455]
[1749208214482,4.82276057,148.57,148.56,6.77886455]
[1749208214778,6.7274,148.58,148.56,6.77886455]
[1749208216876,0.04944142,148.59,148.56,0.05086455]
[1749208217080,6.7276,148.57,148.56,0.05086455]
[1749208217782,6.7272,148.58,148.56,0.05086455]
[1749208217985,4.80313923,148.59,148.56,0.05086455]
[1749208218192,10.38881567,148.58,148.56,0.05086455]
[1749208218378,6.7274,148.58,148.56,6.77876455]
[1749208220186,6.7274,148.58,148.56,0.05086455]
[1749208220774,6.7274,148.58,148.56,6.77876455]
[1749208223587,6.7276,148.57,148.56,0.05086455]
[1749208223782,11.57036153,148.57,148.56,0.05086455]